Cogmind - Beta 11.1 @@@ ROGUE MODE // 2022.04.23 @ 03:49:29 Player: Shodan Result: Self-destructed Performance ------------- Evolutions (6) 3000 Regions Visited (17) 3400 Robots Destroyed (96) 480 Value Destroyed (3501) 3501 Prototype IDs (14) 280 Alien Tech Used (0) 0 Bonus (2295) 2295 TOTAL SCORE: 12956 Bonus ------- High Alert Combat Kills 147 Follower Combat Kills 746 Entered DSFs 500 Met Warlord at Base 500 MAIN.C Attacked Warlord 500 Friendly Fire -98 Cogmind --------- Core Integrity 1020/1150 Matter 285/300 Energy 700/700 System Corruption 0% Temperature Cool (0) Movement Treading (160) Location -4/Factory Parts ------- > --- POWER (2) -------- Vortex Chain Reactor > --- PROPULSION (4) --- Heavy Treads Heavy Treads > --- UTILITY (10) ----- Cooling System Medium Storage Unit Advanced Signal Interpreter Experimental Target Analyzer Graphene Brace Improved System Shield Ghost Barrier > --- WEAPON (3) ------- HERF Cannon > --- INVENTORY (10) --- Fission Core Coolant Injector Small Storage Unit Advanced ECM Suite Cooled Particle Cannon Cooled Particle Cannon Cooled Particle Cannon Peak State ------------ > --- POWER ------------ Vortex Chain Reactor > --- PROPULSION ------- Heavy Treads Heavy Treads > --- UTILITY ---------- Cooling System Medium Storage Unit Advanced Sensor Array Advanced Signal Interpreter Experimental Target Analyzer Hardened Heavy Armor Plating Graphene Brace Improved System Shield Ghost Barrier > --- WEAPON ----------- Long-range Missile Launcher Molecular Deconstructor > --- INVENTORY -------- Fission Core Coolant Injector Small Storage Unit Advanced ECM Suite Graphene Brace HERF Cannon Cooled Particle Cannon Cooled Particle Cannon Cooled Particle Cannon [Rating: 122] Favorites ----------- Power Fission Core Engine Light Ion Engine Power Core Fission Core Reactor Vortex Chain Reactor Propulsion Heavy Treads Treads Heavy Treads Leg Aluminum Leg Wheel Compact Wheel Utility Small Storage Unit Device Graphene Brace Storage Small Storage Unit Processor Advanced Signal Interpreter Hackware Improved System Shield Protection Hardened Heavy Armor Plating Weapon Cooled Particle Cannon Energy Gun Medium Laser Energy Cannon Cooled Particle Cannon Ballistic Cannon Gauss Cannon Launcher Long-range Missile Launcher Special Weapon Molecular Deconstructor Impact Weapon Heavy Mace Piercing Weapon Makeshift Spear Build | -11 -10 -10 -9 -9 -9 -8 -8 -7 -7 -6 -6 -5 -5 -5 -5 -4 -4 ------- Run | Scr Mat Min Mat Min Exi Min Mat Fac Sto Fac DSF Fac Upp Upp War Pro Fac Slots Evolved 12 | . . . 2 . . . 2 2 . 2 . 2 . . . . 2 Power 1 | . . . . . . . . . . . . . . . . . 1 Propulsion 2 | . . . . . . . 1 . . . . 1 . . . . . Utility 8 | . . . 2 . . . 1 1 . 2 . 1 . . . . 1 Weapon 1 | . . . . . . . . 1 . . . . . . . . . Parts Attached 78 | 2 1 1 1 6 . . 13 4 15 5 8 5 2 . 9 1 5 Power 5 | . . . . . . . 1 . 1 . . 1 . . 1 . 1 Engine 1 | . . . . . . . . . 1 . . . . . . . . Core 3 | . . . . . . . 1 . . . . 1 . . 1 . . Reactor 1 | . . . . . . . . . . . . . . . . . 1 Propulsion 17 | 2 . . . . . . 6 . 4 1 3 1 . . . . . Treads 13 | . . . . . . . 4 . 4 1 3 1 . . . . . Leg . | . . . . . . . . . . . . . . . . . . Wheel 4 | 2 . . . . . . 2 . . . . . . . . . . Hover . | . . . . . . . . . . . . . . . . . . Flight . | . . . . . . . . . . . . . . . . . . Utility 25 | . 1 . . 3 . . 3 1 2 3 2 2 . . 5 . 3 Device 13 | . . . . 1 . . 2 . 1 3 1 1 . . 3 . 1 Storage 1 | . . . . . . . . . . . . . . . . . 1 Processor 3 | . . . . 1 . . . . . . 1 . . . 1 . . Hackware 3 | . . . . . . . . 1 . . . . . . 1 . 1 Protection 5 | . 1 . . 1 . . 1 . 1 . . 1 . . . . . Artifact . | . . . . . . . . . . . . . . . . . . Weapon 31 | . . 1 1 3 . . 3 3 8 1 3 1 2 . 3 1 1 Energy Gun 4 | . . . . . . . 1 1 1 . . . . . 1 . . Energy Cannon 14 | . . . 1 1 . . 1 1 4 . 2 . 1 . 2 . 1 Ballistic Gun . | . . . . . . . . . . . . . . . . . . Ballistic Cannon 1 | . . . . . . . 1 . . . . . . . . . . Launcher 7 | . . 1 . 2 . . . . 2 . 1 . 1 . . . . Special Weapon 1 | . . . . . . . . . . . . . . . . 1 . Impact Weapon 3 | . . . . . . . . . 1 1 . 1 . . . . . Slashing Weapon . | . . . . . . . . . . . . . . . . . . Piercing Weapon 1 | . . . . . . . . 1 . . . . . . . . . Special Melee Weapon . | . . . . . . . . . . . . . . . . . . Unidentified Prototypes 13 | . . . . . . . . 1 4 . . . . . 5 1 2 Parts Lost 19 | . . . . . . . 9 1 1 . 3 . 1 . . . 4 Power 1 | . . . . . . . 1 . . . . . . . . . . Propulsion 4 | . . . . . . . 2 . . . 2 . . . . . . Utility 9 | . . . . . . . 5 1 . . . . 1 . . . 2 Weapon 5 | . . . . . . . 1 . 1 . 1 . . . . . 2 Highest Loss Streak 6 | . . . . . . . 6 1 1 . 2 . 1 . . . 3 To Critical Strikes . | . . . . . . . . . . . . . . . . . . Average Slot Usage (%) 83 | . 90 100 76 99 100 100 83 73 76 84 94 82 79 76 77 80 71 Engine 4 | . 14 14 11 11 11 11 5 . 3 6 6 2 . . . . . Core 2 | . . . . . . . 3 7 3 . . 2 5 5 5 5 . Treads 10 | . . . . . . . 11 23 22 20 17 11 11 11 11 11 10 Wheel 6 | . 28 28 22 22 22 22 13 . . . . . . . . . . Device 15 | . . . . 6 11 11 9 7 9 24 33 23 23 23 21 17 13 Storage 7 | . 14 14 11 11 11 11 9 7 7 6 6 5 5 5 5 5 5 Processor 4 | . . . . 4 . . . . . . 4 5 5 5 6 11 10 Hackware 1 | . . . . . . . . 4 . . . . . . 1 5 10 Protection 9 | . 4 14 11 22 22 22 12 . 5 6 6 10 8 5 5 5 4 Energy Gun 1 | . 28 26 6 . . . 2 . 1 . . . . . . . . Energy Cannon 9 | . . . 3 10 . . 3 14 12 16 16 12 14 11 10 8 . Launcher 5 | . . 1 11 11 22 22 6 . 1 . 2 . 2 5 5 5 4 Naked Turns . | . . . . . . . . . . . . . . . . . . Heaviest Build 93 | 12 15 16 18 23 23 23 28 26 44 47 50 69 68 64 93 75 85 Greatest Support 140 | 32 32 32 32 32 32 32 69 66 66 74 90 140 140 140 140 140 140 Greatest Overweight (x) 1 | . . . . . . . 1 . . . . . . . . . . Average Overweight (x) . | . . . . . . . . . . . . . . . . . . Largest Inventory Capacity 10 | 8 8 8 8 8 8 8 8 8 8 8 8 8 8 8 8 8 10 Average Capacity 8 | 8 8 8 8 8 8 8 8 8 8 8 8 8 8 8 8 8 9 Most Carried 9 | 6 6 6 8 8 8 8 8 8 8 8 8 8 7 7 8 8 9 Average Carried 7 | 5 4 6 6 7 7 8 7 7 6 7 7 6 7 7 7 8 7 Final Capacity 10 | 8 8 8 8 8 8 8 8 8 8 8 8 8 8 8 8 8 10 Final Carried 8 | 4 6 6 8 8 8 8 8 7 7 8 8 7 7 7 8 8 7 Class Distribution -------------------- 43% | Mutant 24% | Skirmisher 20% | Commander-Mutant 4% | Hacker-Mutant 3% | Tank Dominant Class ---------------- Mutant | -10/Materials Mutant | -10/Mines Mutant | -9/Materials Mutant | -9/Mines Commander-Mutant | -9/Exiles Commander-Mutant | -8/Mines Mutant | -8/Materials Mutant | -7/Factory Mutant | -7/Storage Mutant | -6/Factory Mutant | -6/DSF Mutant | -5/Factory Mutant | -5/Upper Caves Skirmisher | -5/Upper Caves Skirmisher | -5/Warlord Commander-Mutant | -4/Proximity Caves Hacker-Mutant | -4/Factory Resources | -11 -10 -10 -9 -9 -9 -8 -8 -7 -7 -6 -6 -5 -5 -5 -5 -4 -4 ----------- Run | Scr Mat Min Mat Min Exi Min Mat Fac Sto Fac DSF Fac Upp Upp War Pro Fac Matter Collected 1831 | 200 . 7 133 60 . 85 345 . 161 . 249 . 116 125 90 16 244 Remotely . | . . . . . . . . . . . . . . . . . . Salvage Created 3337 | . . 21 285 144 . 153 604 75 225 . 974 . 167 322 . 130 237 Parts 174 | . . 3 24 13 . 9 37 4 8 . 41 . 6 15 . 8 6 Haulers Intercepted 5 | . . . . . . . 2 . 1 . 1 . . . . . 1 Recyclers Shooed 3 | . . . 2 . . . 1 . . . . . . . . . . Parts Field Recycled . | . . . . . . . . . . . . . . . . . . Retrieved Matter . | . . . . . . . . . . . . . . . . . . Parts Self-Destructed 90 | . . . . . . . . . . . . . 2 13 67 8 . Prevented 8 | . . . . . . . . . . . . . . . 8 . . Kills | -11 -10 -10 -9 -9 -9 -8 -8 -7 -7 -6 -6 -5 -5 -5 -5 -4 -4 ------- Run | Scr Mat Min Mat Min Exi Min Mat Fac Sto Fac DSF Fac Upp Upp War Pro Fac Combat Hostiles Destroyed 79 | . . 3 6 6 . 3 11 1 5 . 13 . 9 7 . 12 3 Guns 3 | . . . 2 . . . 1 . . . . . . . . . . Cannons 25 | . . . 1 1 . . 6 . 3 . 9 . 1 3 . 1 . AOE 48 | . . 3 3 5 . 3 4 . 2 . 3 . 8 4 . 11 2 Classes Destroyed 14 | . . 1 5 1 . 2 3 1 . . 1 . . . . . . Worker 1 | . . . . . . 1 . . . . . . . . . . . Builder 4 | . . . 1 . . 1 2 . . . . . . . . . . Tunneler 2 | . . . . . . 1 1 . . . . . . . . . . Hauler 5 | . . . . . . . 2 . 1 . 1 . . . . . 1 Recycler 2 | . . . 1 . . . 1 . . . . . . . . . . Watcher 3 | . . . 1 . . . 2 . . . . . . . . . . Swarmer 29 | . . 3 . 3 . . . . . . 7 . 5 . . 11 . Grunt 34 | . . . 5 2 . 3 8 . 5 . . . 3 6 . . 2 Brawler 2 | . . . . 1 . . . . . . . . . 1 . . . Duelist 1 | . . . 1 . . . . . . . . . . . . . . Sentry 4 | . . . . . . . . 1 . . 1 . 1 . . 1 . Specialist 5 | . . . . . . . 2 . . . 3 . . . . . . Hunter 2 | . . . . . . . . . . . 1 . . . . . 1 Heavy 2 | . . . . . . . 1 . . . 1 . . . . . . Best Kill Streak 9 | . . 3 5 3 . 4 9 1 3 . 4 . 5 4 . 5 3 Combat Bots Only 5 | . . 3 4 3 . 3 4 1 3 . 4 . 5 4 . 5 2 Max Kills in Single Turn 4 | . . 2 2 3 . 4 3 1 1 . 2 . 2 2 . 3 2 Gunslinging . | . . . . . . . . . . . . . . . . . . Exploded 3 | . . 2 2 3 . 3 2 . 1 . 1 . 2 2 . 3 2 Melee . | . . . . . . . . . . . . . . . . . . Uniques/NPCs Destroyed . | . . . . . . . . . . . . . . . . . . Combat | -11 -10 -10 -9 -9 -9 -8 -8 -7 -7 -6 -6 -5 -5 -5 -5 -4 -4 -------- Run | Scr Mat Min Mat Min Exi Min Mat Fac Sto Fac DSF Fac Upp Upp War Pro Fac Damage Taken 4778 | . . 91 70 8 . 72 1194 88 159 . 1478 40 308 49 11 63 1147 Core 679 | . . 29 26 . . 16 187 . 30 . 232 . 15 . . 14 130 Absorbed by Shields 464 | . . . . . . . . . . . . . . . 10 62 392 Core Remaining (%) 86 | 100 . 88 . . . 89 66 . 95 . 72 . . . . 97 . Volleys Fired 162 | . . 2 15 2 . 4 35 3 14 . 38 . 8 6 1 10 24 Largest 3 | . . 1 2 2 . 2 2 2 3 . 3 . 3 3 1 2 2 Hottest 180 | . . 30 86 86 . 63 104 112 112 . 180 . 103 103 50 100 88 Shots Fired 273 | . . 2 22 3 . 6 60 6 25 . 75 . 14 18 1 12 29 Gun 22 | . . . 10 . . . 12 . . . . . . . . . . Cannon 168 | . . . 5 1 . . 39 6 18 . 66 . 8 12 1 5 7 Launcher 63 | . . 2 7 2 . 6 9 . 7 . 9 . 6 6 . 5 4 Special 20 | . . . . . . . . . . . . . . . . 2 18 Kinetic 27 | . . . . . . . 27 . . . . . . . . . . Thermal 108 | . . . 10 . . . . . 12 . 66 . 8 12 . . . Explosive 54 | . . 2 7 2 . 6 9 . 7 . . . 6 6 . 5 4 Electromagnetic 58 | . . . 5 1 . . 24 6 6 . 9 . . . . . 7 Entropic 6 | . . . . . . . . . . . . . . . 1 5 . Robot Hit Streak 11 | . . 1 9 10 . 2 11 7 11 . 8 . 8 5 . 6 4 Robot Miss Streak 6 | . . . 2 . . 2 6 . 3 . 2 . 1 1 . 1 3 Penetration Max 1 | . . . . . . . 1 . . . . . . . . . . Secondary Targets . | . . . . . . . . . . . . . . . . . . Shots Hit Robots 172 | . . 1 15 1 . 3 40 6 16 . 49 . 11 8 . 6 16 Core Hits 162 | . . 3 16 6 . 11 34 1 11 . 22 . 17 16 . 15 10 Critical Kills . | . . . . . . . . . . . . . . . . . . Critical Parts Destroyed . | . . . . . . . . . . . . . . . . . . Critical Strikes 9 | . . . 2 . . . 4 . 1 . . . . . . 2 . Burn 2 | . . . 2 . . . . . . . . . . . . . . Blast 4 | . . . . . . . 4 . . . . . . . . . . Corrupt 1 | . . . . . . . . . 1 . . . . . . . . Sunder 2 | . . . . . . . . . . . . . . . . 2 . Melee Attacks 17 | . . . . . . . . 11 1 2 . 3 . . . . . Impact 6 | . . . . . . . . . 1 2 . 3 . . . . . Slashing . | . . . . . . . . . . . . . . . . . . Piercing 11 | . . . . . . . . 11 . . . . . . . . . Sneak Attacks . | . . . . . . . . . . . . . . . . . . Combat Hostiles . | . . . . . . . . . . . . . . . . . . Follow-up Attacks . | . . . . . . . . . . . . . . . . . . Damage Inflicted 9839 | . . 170 683 285 . 489 2296 116 659 . 1651 17 1100 778 . 835 760 Guns 260 | . . . 96 . . . 164 . . . . . . . . . . Cannons 3250 | . . . 135 20 . . 708 116 313 . 1356 . 136 161 . 144 161 Explosions 6309 | . . 170 452 264 . 489 1424 . 346 . 295 . 964 615 . 691 599 Melee . | . . . . . . . . . . . . . . . . . . Ramming 20 | . . . . 1 . . . . . . . 17 . 2 . . . Kinetic 544 | . . . . . . . 544 . . . . . . . . . . Thermal 2437 | . . . 96 . . 36 434 . 218 . 1356 . 136 161 . . . Explosive 5544 | . . 170 452 264 . 453 990 . 346 . . . 964 615 . 691 599 Electromagnetic 1150 | . . . 135 20 . . 328 116 95 . 295 . . . . . 161 Impact . | . . . . . . . . . . . . . . . . . . Slashing . | . . . . . . . . . . . . . . . . . . Piercing . | . . . . . . . . . . . . . . . . . . Entropic 144 | . . . . . . . . . . . . . . . . 144 . Highest Corruption . | . . . . . . . . . . . . . . . . . . Average Corruption . | . . . . . . . . . . . . . . . . . . Corruption Purged . | . . . . . . . . . . . . . . . . . . Corruption Blocked 6 | . . . . . . . . . . . . . . . 6 . . Overload Shots 2 | . . . . . . . . . . . 2 . . . . . . Overflow Damage 394 | . . . . . . . 323 . . . 24 2 44 . . 1 . Projectiles 49 | . . . . . . . 23 . . . 24 . 2 . . . . Explosions 343 | . . . . . . . 300 . . . . . 42 . . 1 . Melee 2 | . . . . . . . . . . . . 2 . . . . . Knockbacks 3 | . . . . . . . 3 . . . . . . . . . . Impact . | . . . . . . . . . . . . . . . . . . Kinetic 2 | . . . . . . . 2 . . . . . . . . . . Secondary 1 | . . . . . . . 1 . . . . . . . . . . Self-Inflicted Damage 170 | . . . . . . . 65 . 23 . . . . 12 . . 70 Shots 5 | . . . . . . . 2 . 1 . . . . 1 . . 1 Rammed 3 | . . . . 1 . . . . . . . 1 . 1 . . . Targets Rammed 3 | . . . . 1 . . . . . . . 1 . 1 . . . Kicked . | . . . . . . . . . . . . . . . . . . Crushed . | . . . . . . . . . . . . . . . . . . Highest Temperature 267 | . . . 112 33 . . 267 114 101 . 15 . . . . . 4 Average Temperature 61 | . . . 51 20 . . 101 60 39 . 10 . . . . . 2 Received Heat Transfer 512 | . . . 30 . . 9 252 24 81 . 21 . 45 18 . . 32 Siege Activations . | . . . . . . . . . . . . . . . . . . Robots Corrupted 4 | . . . . . . . . 1 1 . 1 . . . . . 1 Combat Hostiles 3 | . . . . . . . . 1 . . 1 . . . . . 1 Parts Fried 6 | . . . . . . . . 2 1 . 2 . . . . . 1 Impact Corruptions 1 | . . . . . . . . . . . . 1 . . . . . Robots Melted . | . . . . . . . . . . . . . . . . . . Combat Hostiles . | . . . . . . . . . . . . . . . . . . Parts Melted 2 | . . . . . . . . . 1 . 1 . . . . . . Heat Transferred 3236 | . . . 407 . . 50 250 . 296 . 1826 . 185 222 . . . Parts Sabotaged . | . . . . . . . . . . . . . . . . . . Parts Stolen . | . . . . . . . . . . . . . . . . . . Parts Stripped . | . . . . . . . . . . . . . . . . . . Power Chain Reactions 1 | . . . . . . . 1 . . . . . . . . . . Missiles Intercepted . | . . . . . . . . . . . . . . . . . . Alert | -11 -10 -10 -9 -9 -9 -8 -8 -7 -7 -6 -6 -5 -5 -5 -5 -4 -4 ------- Run | Scr Mat Min Mat Min Exi Min Mat Fac Sto Fac DSF Fac Upp Upp War Pro Fac Peak Influence 734 | . 7 159 437 293 . 320 734 305 288 111 421 257 . . . . 454 Initial 265 | . . 2 61 170 . . 124 265 138 79 81 220 . . . . 70 Average 221 | . 6 14 216 200 . 101 527 276 192 90 269 241 . . . . 283 Maximum Alert Level 3 | . . . 2 1 . 1 3 1 1 . 2 1 . . . . 2 Low Security (%) 49 | 100 100 100 45 65 . 91 17 . 56 100 33 . . . . . 29 Level 1 40 | . . . 40 34 . 8 6 100 43 . 44 100 . . . . 61 Level 2 8 | . . . 13 . . . 55 . . . 22 . . . . . 9 Level 3 1 | . . . . . . . 20 . . . . . . . . . . Level 4 . | . . . . . . . . . . . . . . . . . . Level 5 . | . . . . . . . . . . . . . . . . . . High Security . | . . . . . . . . . . . . . . . . . . Max Security . | . . . . . . . . . . . . . . . . . . Sterilizations 1 | . . . . . . . . . . . 1 . . . . . . Squads Dispatched 13 | . . . 3 1 . . 3 . 2 . 2 . . . . . 2 Investigation 2 | . . . . 1 . . . . 1 . . . . . . . . Extermination . | . . . . . . . . . . . . . . . . . . Reinforcement 11 | . . . 3 . . . 3 . 1 . 2 . . . . . 2 Assault . | . . . . . . . . . . . . . . . . . . Garrison . | . . . . . . . . . . . . . . . . . . Intercept . | . . . . . . . . . . . . . . . . . . Searches Triggered . | . . . . . . . . . . . . . . . . . . Construction Impeded 1 | . . . . . . . 1 . . . . . . . . . . Haulers Reinforced 1 | . . . . . . . . . 1 . . . . . . . . Active Scanning Responses . | . . . . . . . . . . . . . . . . . . Cargo Convoy Interrupts . | . . . . . . . . . . . . . . . . . . Stealth | -11 -10 -10 -9 -9 -9 -8 -8 -7 -7 -6 -6 -5 -5 -5 -5 -4 -4 --------- Run | Scr Mat Min Mat Min Exi Min Mat Fac Sto Fac DSF Fac Upp Upp War Pro Fac Distress Signals 4 | . . . 1 . . . 3 . . . . . . . . . . Communications Jammed . | . . . . . . . . . . . . . . . . . . Distress Signals . | . . . . . . . . . . . . . . . . . . Times Spotted 118 | . . 5 14 6 . 4 20 1 6 . 15 5 6 6 1 9 20 Peak Tracking Total 7 | . . 3 6 3 . 3 7 1 3 . 5 4 5 4 2 5 7 Tactical Retreats 3 | . . 1 . . . . 1 . . . 1 . . . . . . Traps | -11 -10 -10 -9 -9 -9 -8 -8 -7 -7 -6 -6 -5 -5 -5 -5 -4 -4 ------- Run | Scr Mat Min Mat Min Exi Min Mat Fac Sto Fac DSF Fac Upp Upp War Pro Fac Traps Triggered 1 | . . . . . . . . . 1 . . . . . . . . Indirectly . | . . . . . . . . . . . . . . . . . . Trap Hack Attempts . | . . . . . . . . . . . . . . . . . . Triggered . | . . . . . . . . . . . . . . . . . . Disarmed . | . . . . . . . . . . . . . . . . . . Reprogrammed . | . . . . . . . . . . . . . . . . . . Reused . | . . . . . . . . . . . . . . . . . . Traps Extracted . | . . . . . . . . . . . . . . . . . . Installed . | . . . . . . . . . . . . . . . . . . Triggered 21 | . . . . . . . . . . . . . . . 21 . . Machines | -11 -10 -10 -9 -9 -9 -8 -8 -7 -7 -6 -6 -5 -5 -5 -5 -4 -4 ---------- Run | Scr Mat Min Mat Min Exi Min Mat Fac Sto Fac DSF Fac Upp Upp War Pro Fac Machines Disabled 15 | . . . . 2 . 3 4 . 2 . 2 . . . 1 1 . Max in Single Turn 2 | . . . . 2 . 2 2 . 1 . 1 . . . 1 1 . Machines Sabotaged . | . . . . . . . . . . . . . . . . . . Garrisons Compromised . | . . . . . . . . . . . . . . . . . . Overloaded Fab Kills . | . . . . . . . . . . . . . . . . . . Hacking | -11 -10 -10 -9 -9 -9 -8 -8 -7 -7 -6 -6 -5 -5 -5 -5 -4 -4 --------- Run | Scr Mat Min Mat Min Exi Min Mat Fac Sto Fac DSF Fac Upp Upp War Pro Fac Machines Accessed 30 | . 2 1 3 1 1 1 1 1 5 3 . 3 2 . 5 . 1 Terminals 15 | . 2 . 3 . . 1 1 . 4 2 . 2 . . . . . Fabricators 1 | . . . . . . . . . . . . . . . . . 1 Repair Stations 1 | . . . . . . . . . . . . 1 . . . . . Recycling Units 1 | . . . . . . . . . 1 . . . . . . . . Scanalyzers 1 | . . . . . . . . 1 . . . . . . . . . Garrison Access 1 | . . . . . . . . . . 1 . . . . . . . Total Hacks 64 | . 3 1 5 1 7 3 4 2 13 5 . 6 6 . 7 . 1 Successful 44 | . 3 1 1 1 7 2 2 2 6 3 . 2 6 . 7 . 1 Failed 20 | . . . 4 . . 1 2 . 7 2 . 4 . . . . . Catastrophic 4 | . . . 2 . . . . . 1 . . 1 . . . . . Database Lockouts . | . . . . . . . . . . . . . . . . . . Manual 16 | . 2 . 4 . . 1 4 . 2 1 . 1 . . . 1 . Terminals 32 | . 3 . 5 . . 3 4 . 8 4 . 5 . . . . . Fabricators 1 | . . . . . . . . . . . . . . . . . 1 Repair Stations 1 | . . . . . . . . . . . . 1 . . . . . Recycling Units 5 | . . . . . . . . . 5 . . . . . . . . Scanalyzers 2 | . . . . . . . . 2 . . . . . . . . . Garrison Access 1 | . . . . . . . . . . 1 . . . . . . . Terminal Hacks 38 | . 3 1 1 1 7 2 2 . 4 3 . 1 6 . 7 . . Record 19 | . . . . . 7 2 . . . . . . 5 . 5 . . Robot Analysis 3 | . 2 . 1 . . . . . . . . . . . . . . Open Door 6 | . . 1 . 1 . . . . 1 . . . 1 . 2 . . Open DSF 2 | . . . . . . . . . . 1 . 1 . . . . . Branch Access Points 3 | . 1 . . . . . . . 1 1 . . . . . . . Alert Level 2 | . . . . . . . 1 . 1 . . . . . . . . Unreport Threat 1 | . . . . . . . 1 . . . . . . . . . . Locate Traps 1 | . . . . . . . . . . 1 . . . . . . . Hauler Manifests 1 | . . . . . . . . . 1 . . . . . . . . Fabricator Hacks 1 | . . . . . . . . . . . . . . . . . 1 Network Status 1 | . . . . . . . . . . . . . . . . . 1 Repair Station Hacks . | . . . . . . . . . . . . . . . . . . Recycling Unit Hacks 2 | . . . . . . . . . 2 . . . . . . . . Report Inventory 1 | . . . . . . . . . 1 . . . . . . . . Retrieve Components 1 | . . . . . . . . . 1 . . . . . . . . Scanalyzer 2 | . . . . . . . . 2 . . . . . . . . . Insert Component 1 | . . . . . . . . 1 . . . . . . . . . Analyze 1 | . . . . . . . . 1 . . . . . . . . . Garrison Access Hacks . | . . . . . . . . . . . . . . . . . . Unauthorized Hacks 1 | . . . . . . . . . . . . 1 . . . . . Terminals 1 | . . . . . . . . . . . . 1 . . . . . Assimilate 1 | . . . . . . . . . . . . 1 . . . . . Fabricators . | . . . . . . . . . . . . . . . . . . Repair Stations . | . . . . . . . . . . . . . . . . . . Recycling Units . | . . . . . . . . . . . . . . . . . . Scanalyzers . | . . . . . . . . . . . . . . . . . . Garrison Access . | . . . . . . . . . . . . . . . . . . Data Cores Recovered . | . . . . . . . . . . . . . . . . . . Used . | . . . . . . . . . . . . . . . . . . Hacking Detections 17 | . 1 . 3 . . 1 1 1 5 2 . 3 . . . . . Full Trace Events 1 | . . . . . . . . . 1 . . . . . . . . Feedback Events . | . . . . . . . . . . . . . . . . . . Feedback Blocked . | . . . . . . . . . . . . . . . . . . Robot Schematics Acquired . | . . . . . . . . . . . . . . . . . . Robots Built . | . . . . . . . . . . . . . . . . . . Authchips . | . . . . . . . . . . . . . . . . . . Time . | . . . . . . . . . . . . . . . . . . Total Robot Build Rating . | . . . . . . . . . . . . . . . . . . Part Schematics Acquired 1 | . . . . . . . . 1 . . . . . . . . . Parts Built . | . . . . . . . . . . . . . . . . . . Authchips . | . . . . . . . . . . . . . . . . . . Time . | . . . . . . . . . . . . . . . . . . Total Part Build Rating . | . . . . . . . . . . . . . . . . . . Parts Repaired . | . . . . . . . . . . . . . . . . . . Time . | . . . . . . . . . . . . . . . . . . Parts Recycled . | . . . . . . . . . . . . . . . . . . Recycled Matter . | . . . . . . . . . . . . . . . . . . Retrieved Matter . | . . . . . . . . . . . . . . . . . . Retrieved Components 10 | . . . . . . . . . 10 . . . . . . . . Parts Scanalyzed 1 | . . . . . . . . 1 . . . . . . . . . Part Schematics Acquired 1 | . . . . . . . . 1 . . . . . . . . . Parts Damaged . | . . . . . . . . . . . . . . . . . . Bothacking | -11 -10 -10 -9 -9 -9 -8 -8 -7 -7 -6 -6 -5 -5 -5 -5 -4 -4 ------------ Run | Scr Mat Min Mat Min Exi Min Mat Fac Sto Fac DSF Fac Upp Upp War Pro Fac Used RIF Installer . | . . . . . . . . . . . . . . . . . . Robots Hacked . | . . . . . . . . . . . . . . . . . . Non-combat . | . . . . . . . . . . . . . . . . . . Combat . | . . . . . . . . . . . . . . . . . . Robot Hacks Applied . | . . . . . . . . . . . . . . . . . . Relay Couplers Released . | . . . . . . . . . . . . . . . . . . Fabnet Peak Effective % . | . . . . . . . . . . . . . . . . . . Robots Rewired 6 | . . . . . 3 . . . . . . . . . 3 . . Allies Hacked . | . . . . . . . . . . . . . . . . . . Hacks Repelled . | . . . . . . . . . . . . . . . . . . Allies | -11 -10 -10 -9 -9 -9 -8 -8 -7 -7 -6 -6 -5 -5 -5 -5 -4 -4 -------- Run | Scr Mat Min Mat Min Exi Min Mat Fac Sto Fac DSF Fac Upp Upp War Pro Fac Total Allies 11 | . . . . 4 3 . . . . . . 1 . . 3 . . Largest Group 6 | . . . . 4 6 6 6 . . . . 1 1 1 4 4 4 Highest-Rated Group 175 | . . . . 71 77 77 77 . . . . 26 26 26 175 175 175 Highest-Rated Ally 65 | . . . . 31 31 21 21 . . . . 26 26 26 65 65 65 Total Orders . | . . . . . . . . . . . . . . . . . . Ally Attacks 117 | . . . . 7 . 16 61 . . . . . . . 7 2 24 Total Damage 1993 | . . . . 66 . 170 549 . . . . . . . 239 63 906 Kills 27 | . . . . 2 . 4 8 . . . . . . . 2 . 11 Allies Corrupted . | . . . . . . . . . . . . . . . . . . Allies Melted . | . . . . . . . . . . . . . . . . . . Intel | -11 -10 -10 -9 -9 -9 -8 -8 -7 -7 -6 -6 -5 -5 -5 -5 -4 -4 ------- Run | Scr Mat Min Mat Min Exi Min Mat Fac Sto Fac DSF Fac Upp Upp War Pro Fac Robot Analysis Total 3 | . 2 . 1 . . . . . . . . . . . . . . Derelict Logs Recovered 2 | . . . . 2 . . . . . . . . . . . . . Drone Launches . | . . . . . . . . . . . . . . . . . . Drone Recoveries . | . . . . . . . . . . . . . . . . . . Exploration | -11 -10 -10 -9 -9 -9 -8 -8 -7 -7 -6 -6 -5 -5 -5 -5 -4 -4 ------------- Run | Scr Mat Min Mat Min Exi Min Mat Fac Sto Fac DSF Fac Upp Upp War Pro Fac Turns Passed 6891 | 5 56 262 153 604 450 212 325 304 478 289 299 312 450 762 1032 541 357 Spaces Moved 4483 | 1 53 256 111 555 412 182 177 164 282 188 109 181 267 463 602 311 169 Core . | . . . . . . . . . . . . . . . . . . Treads 2791 | . . . . . . . 55 164 282 188 109 181 267 463 602 311 169 Legs . | . . . . . . . . . . . . . . . . . . Wheels 1692 | 1 53 256 111 555 412 182 122 . . . . . . . . . . Hover . | . . . . . . . . . . . . . . . . . . Flight . | . . . . . . . . . . . . . . . . . . Fastest Speed 86 | 100 100 100 100 100 100 100 86 163 145 145 150 160 160 160 160 160 160 Average Speed 135 | 100 100 100 100 100 100 100 116 163 145 146 156 160 160 160 160 160 160 Slowest Speed 240 | 100 100 100 100 100 100 100 240 163 163 150 165 160 160 160 160 160 160 Overloaded Moves . | . . . . . . . . . . . . . . . . . . Propulsion Burnouts . | . . . . . . . . . . . . . . . . . . Robots Hopped . | . . . . . . . . . . . . . . . . . . Cave-ins Triggered . | . . . . . . . . . . . . . . . . . . Exploration Rate (%) 43 | 2 12 66 24 95 89 59 21 4 55 6 90 6 46 71 78 57 10 Regions Visited 17 Branch Regions 9 Pre-discovered Areas 2 | . . 1 . 1 . . . . . . . . . . . . . Known Exits Taken 7 | . 1 . . . . . . . . 1 . 1 1 1 1 1 . Unknown Exits Taken 9 | 1 . 1 1 1 1 1 1 1 1 . . . . . . . . Scrap Searched 4 | . . . . 2 . . . . . . . . 1 1 . . . Spaces Dug 10 | . . . . . . . . 5 . 2 . 3 . . . . . Terrain Destroyed 418 | . . 15 46 12 . 35 84 5 22 2 . 3 32 89 . 44 29 Melee 10 | . . . . . . . . 5 . 2 . 3 . . . . . Projectile 17 | . . . . . . . 12 . 3 . . . . 1 . 1 . AOE 391 | . . 15 46 12 . 35 72 . 19 . . . 32 88 . 43 29 Terrain Rammed . | . . . . . . . . . . . . . . . . . . Walls Destroyed . | . . . . . . . . . . . . . . . . . . Machines Disabled . | . . . . . . . . . . . . . . . . . . Actions | -11 -10 -10 -9 -9 -9 -8 -8 -7 -7 -6 -6 -5 -5 -5 -5 -4 -4 --------- Run | Scr Mat Min Mat Min Exi Min Mat Fac Sto Fac DSF Fac Upp Upp War Pro Fac Total 4976 | 4 55 259 131 600 450 206 233 183 325 197 171 199 276 469 671 340 207 Wait 111 | . . 1 . 29 15 21 2 . . . 6 3 . . 13 17 4 Move 4467 | . 52 255 110 554 411 181 176 163 281 187 108 181 266 462 601 310 169 Hop . | . . . . . . . . . . . . . . . . . . Pick Up 35 | . 2 . 3 4 1 . 4 1 4 1 4 3 . . 5 . 3 Fast Attach 37 | . 1 . 1 2 . . 6 1 10 4 4 1 . . 6 1 . Attach 18 | . . . . 1 . . 4 1 3 . 2 3 . . 1 . 3 Detach 3 | . . . . . . . . . 1 1 . 1 . . . . . Swap 23 | 2 . 1 . 3 . . 3 2 2 1 2 1 2 . 2 . 2 Drop 47 | 2 . . 2 4 1 . 3 1 9 1 7 3 . . 10 2 2 Fire 162 | . . 2 15 2 . 4 35 3 14 . 38 . 8 6 1 10 24 Melee 17 | . . . . . . . . 11 1 2 . 3 . . . . . Ram 1 | . . . . 1 . . . . . . . . . . . . . Kick . | . . . . . . . . . . . . . . . . . . Crush 1 | . . . . . . . . . . . . . . 1 . . . Escape Stasis . | . . . . . . . . . . . . . . . . . . Rewire 54 | . . . . . 22 . . . . . . . . . 32 . . Trap . | . . . . . . . . . . . . . . . . . . Miscellaneous . | . . . . . . . . . . . . . . . . . . Route ------- -11/Scrapyard -10/Materials (discovered 2 exits: *Min x2) -10/Mines -9/Materials -9/Mines (discovered 3 exits: *Mat x2 / *Exi) -9/Exiles -8/Mines -8/Materials -7/Factory -7/Storage (discovered 2 exits: *Fac / Rec) -6/Factory (discovered 3 exits: Low x2 / DSF) -6/DSF -5/Factory -5/Upper Caves -5/Upper Caves (discovered 2 exits: *Fac / *War) -5/Warlord -4/Proximity Caves -4/Factory History --------- Turn | Location | Event 6 | -11/Scrapyard | Discovered new exit (range 0) 6 | -11/Scrapyard | Entered Materials 13 | -10/Materials | Identified exit to Mines 62 | -10/Materials | Entered Mines 176 | -10/Mines | Learned location of Storage (-7) 227 | -10/Mines | Met a Derelict who couldn't figure out how to use a Trap Extractor 309 | -10/Mines | Discovered new exit (range 12) 324 | -10/Mines | Entered Materials 324 | -9/Materials | Evolved 2 slots: Utility x2 328 | -9/Materials | Build established: Mutant 457 | -9/Materials | Discovered new exit (range 13) 477 | -9/Materials | Entered Mines 483 | -9/Mines | Met a Derelict shopkeep closing up shop 593 | -9/Mines | Assisted by bots powering up and referring to "LRC-V3" 621 | -9/Mines | Received a Rocket Launcher from a helpful Derelict 713 | -9/Mines | Learned Materials terminal intel 845 | -9/Mines | Discovered new exit (range 11) 855 | -9/Mines | Received a Mining Laser from a helpful Derelict 924 | -9/Mines | Discovered new exit (range 11) 1054 | -9/Mines | Deemed a non-threat by the Exiles lab entrance 1054 | -9/Mines | Discovered new exit (range 5) 1081 | -9/Mines | Entered Exiles 1081 | -9/Exiles | Found Exiles lab destroyed 1081 | -9/Exiles | Accompanied by 4 allies 1505 | -9/Exiles | Discovered new exit (range 12) 1531 | -9/Exiles | Entered Mines 1531 | -8/Mines | Accompanied by 6 allies 1547 | -8/Mines | Build established: Commander-Mutant 1727 | -8/Mines | Discovered new exit (range 11) 1743 | -8/Mines | Entered Materials 1743 | -8/Materials | Accompanied by 6 allies 1743 | -8/Materials | Evolved 2 slots: Propulsion x1, Utility x1 1744 | -8/Materials | Loaded intel: 12 terminal locations 1931 | -8/Materials | Discovered new exit (range 5) 2003 | -8/Materials | Lost 6 parts (1p4u1w) 2068 | -8/Materials | Entered Factory 2068 | -7/Factory | Evolved 2 slots: Utility x1, Weapon x1 2141 | -7/Factory | Discovered new exit (range 3) 2372 | -7/Factory | Entered Storage 2471 | -7/Storage | Build established: Mutant 2658 | -7/Storage | Identified exit to Recycling 2772 | -7/Storage | Discovered new exit (range 8) 2850 | -7/Storage | Entered Factory 2850 | -6/Factory | Evolved 2 slots: Utility x2 3036 | -6/Factory | Identified exit to Lower Caves 3139 | -6/Factory | Identified exit to DSF 3139 | -6/Factory | Entered DSF 3164 | -6/DSF | Additional patrols routed to DSF 3237 | -6/DSF | Discovered new exit (range 15) 3346 | -6/DSF | Sterilization system engaged 3366 | -6/DSF | Ambient heat levels rising (+10) 3381 | -6/DSF | Ambient heat levels rising (+10) 3396 | -6/DSF | Ambient heat levels rising (+10) 3411 | -6/DSF | Ambient heat levels rising (+10) 3426 | -6/DSF | Ambient heat levels rising (+10) 3435 | -6/DSF | Identified exit to Factory 3438 | -6/DSF | Entered Factory 3438 | -5/Factory | Evolved 2 slots: Propulsion x1, Utility x1 3736 | -5/Factory | Discovered new exit (range 9) 3749 | -5/Factory | Identified exit to Upper Caves 3750 | -5/Factory | Entered Upper Caves 3750 | -5/Upper Caves | Accompanied by 1 ally 3923 | -5/Upper Caves | Learned Extension stockpile data 3923 | -5/Upper Caves | Learned Armory terminal intel 3923 | -5/Upper Caves | Learned Armory garrison access intel 4081 | -5/Upper Caves | Attracted the attention of an 0b10 checkpoint 4178 | -5/Upper Caves | Discovered new exit (range 15) 4198 | -5/Upper Caves | Identified exit to Upper Caves 4200 | -5/Upper Caves | Entered another Upper Caves area 4200 | -5/Upper Caves | Accompanied by 1 ally 4343 | -5/Upper Caves | Discovered new exit (range 7) 4351 | -5/Upper Caves | Identified exit to Factory 4382 | -5/Upper Caves | Build established: Skirmisher 4940 | -5/Upper Caves | Discovered new exit (range 15) 4960 | -5/Upper Caves | Identified exit to Warlord 4962 | -5/Upper Caves | Entered Warlord 4962 | -5/Warlord | Accompanied by 1 ally 5242 | -5/Warlord | Learned Research trap positions 5242 | -5/Warlord | Learned Quarantine trap positions 5244 | -5/Warlord | Learned 4 Command zone layouts 5495 | -5/Warlord | Visited the Vortex Lab 5497 | -5/Warlord | Warlord's base attacked by MAIN.C 5503 | -5/Warlord | Found Prototype Energy Gun 5504 | -5/Warlord | Identified Vortex Shotgun 5513 | -5/Warlord | Found Prototype Energy Cannon 5513 | -5/Warlord | Identified Vortex Cannon 5516 | -5/Warlord | Found Vortex Cannon 5706 | -5/Warlord | Met Warlord 5741 | -5/Warlord | Found Prototype Hackware 5746 | -5/Warlord | Found Prototype Processor 5746 | -5/Warlord | Identified Exp. Target Analyzer 5755 | -5/Warlord | Found Prototype Device 5755 | -5/Warlord | Identified Exp. Focal Shield 5772 | -5/Warlord | Found Prototype Reactor 5847 | -5/Warlord | Warlord forces counterattacked 5944 | -5/Warlord | Opened side exit 5973 | -5/Warlord | Discovered new exit (range 11) 5985 | -5/Warlord | Identified exit to Proximity Caves 5994 | -5/Warlord | Entered Proximity Caves 5994 | -4/Proximity Caves | Accompanied by 4 allies 6015 | -4/Proximity Caves | Build established: Commander-Mutant 6019 | -4/Proximity Caves | Attracted the attention of an 0b10 checkpoint 6412 | -4/Proximity Caves | Acquired the password to a Derelict Tinkerer's latest research 6424 | -4/Proximity Caves | Found Prototype Special Weapon 6424 | -4/Proximity Caves | Identified Molecular Deconstructor 6510 | -4/Proximity Caves | Discovered exit to Factory (range 5) 6535 | -4/Proximity Caves | Entered Factory 6535 | -4/Factory | Accompanied by 4 allies 6535 | -4/Factory | Evolved 2 slots: Power x1, Utility x1 6536 | -4/Factory | Identified Vortex Chain Reactor 6537 | -4/Factory | Identified Ghost Barrier 6835 | -4/Factory | Build established: Hacker-Mutant 6892 | -4/Factory | Self-destructed Last Messages --------------- 06884_ H-71 Marshal destroyed. 06884_ Hrd. Heavy Armor Plating destroyed. 06885_ K-01 Serf collects debris. 06886_ Concrete disintegrates. 06886_ Concrete destabilizing. 06886_ K-01 Serf collects debris. 06887_ Concrete disintegrates. 06887_ U-05 Engineer builds a Wall. 06887_ R-10 Processor collects Arm. Medium Treads. 06887_ U-05 Engineer builds a Wall. 06888_ Entropy package works its way towards S-27 Virus core. 06889_ K-01 Serf collects debris. 06889_ Slayer 6a destroyed. 06890_ Concrete disintegrates. 06890_ Concrete destabilizing. 06890_ R-10 Processor collects Arm. Medium Treads. 06890_ R-10 Processor collects Imp. Heavy Armor Plating. 06890_ U-05 Engineer builds a Wall. 06891_ Molecular Deconstructor destroyed. 06892_ S-27 Virus core destabilizing. Map ----- +----------------------------------------------------+ | ?????????????????????????????????????????????????? | | ?????????????????????????????????????????????????? | | ?????????????????????????????????????????????????? | | ?????????????????????????????????????????????????? | | ?????????????????????????????????????????????????? | | ?????????????????????????????????????????????????? | | ?????????????????????????????????????????????????? | | ?????????????????????????????????????????????????? | | ?????????????????????????????????????????????????? | | ?????????????????????????????????????????????????? | | ?????????????????????????????????????????????????? | | ???????????????????????????? ???????????????????? | | ?????????????????????????### ?????????????????? | | ?????????????????????"??? k ?????????????????? | | ?????????????????????""?# ??????????????????? | | ????????????????????? ?# ??????????????????? | | ????????????????????? ?# R???????????????????? | | ????????????????????? #! R ???????????????????? | | ??????????????????????" +!k ????????????????????? | | ??????????????????????" #%kko????????????????????? | | ???????????????????????##%ss##???????????????????? | | ??????????????????????? = s #???????????????????? | | ???????????????????????# Rs %#???????????????????? | | ???????????????????????#! % #???????????????????? | | ???????????????????????# u #???????????????????? | | ???????????????????????# @u #???????????????????? | | ???????????????????????### ###???????????????????? | | ???????????????????????###%##????????????????????? | | ???????????????# ###### # ####################??? | | ???????????????+ % +^ #??? | | ???????????????# # #??? | | ??????????? # #??? | | ??????????? / #??? | | ???????????" ##+############# ! #??? | | ??? ???????? ?????????????????# ! #??? | | ?? "?????? ???????????????????# #??? | | ?? ?????????????????????????# #??? | | ? !! ????????????????????# #??? | | # !! ???????############## #??? | | ! !???????# # #??? | | ???????# """ # #??? | | ???????+ """ #+##+###########? | | #???????# = !! """ # | | #???????# !! # | | #???????# !! """ + | | ######### """ # | | % + """ # | | #### ##### ######### ? | | #??# #???? #?????????? | | #??# " F" #?????#?????????? | +----------------------------------------------------+ Best States ------------- Heat Dissipation 67 Coolant Potential 65 Energy Generation 55 Energy Capacity 700 Matter Stores 300 Matter Capacity 300 Sight Range 16 Robot Scan Range 16 Terrain Scan Density 10 ECM Strength 2 Armor Coverage 750 Evasion (%) 42 Target Analysis 10 Armor Integrity Analysis 30 Recoil Reduction 4 Defensive Hacking 32 Item Schematics ----------------- Hvy. Ion Engine | -7/Factory | Scanalyzed Robot Schematics ------------------ None Fabricated ------------ Nothing Alien Tech Used ----------------- None Achievements -------------- None Challenges ------------ None Game ------ Seed MyomerDecoderCompressor Manual? 0 Play Time 01:09:37 Cumulative 111.2 hours Start 2022.04.23 @ 02:39:58 End 2022.04.23 @ 03:49:29 Sessions 1 Manual Loads 0 Difficulty Rogue Special Mode None Game No. 125 Rogue 125 Adventurer 0 Explorer 0 Win Type - Total 1 Types 1/0/0/0/0/0/0/0/0 Lore% 57 Gallery% 62 Achievement% 50 Wizard Run 0 Options --------- ASCII 0 Keyboard 0 Movement Mouse Keybinds 0 Fullscreen 1 Font 24/Smallcaps Map View 76x50 Tactical HUD 1 Map Filters NONE Filters NONE Steam 1 RUN: 73be0778-bb60-4e5a-bc6b-61b251083629